[Event "new tournament description"]
[Site ""]
[Date "2018.12.27"]
[Round "8.2"]
[White "BELLAHCENE"]
[Black "GULIYEV"]
[Result "1-0"]
[TimeControl "4min+2sec"]
[WhiteElo "2448"]
[BlackElo "2550"]

1. e4 {[%clk 00:04:04]} {[%emt 00:03:33]} e5 {[%clk 00:04:03]} {[%emt
00:00:02]} 2. Nf3 {[%clk 00:04:04]} {[%emt 00:00:01]} Nf6 {[%clk 00:04:03]}
{[%emt 00:00:02]} 3. Nxe5 {[%clk 00:04:04]} {[%emt 00:00:03]} d6 4. Nf3 Nxe4
{[%clk 00:04:05]} {[%emt 00:00:01]} 5. d3 {[%clk 00:04:03]} {[%emt 00:00:04]}
Nf6 {[%clk 00:04:05]} {[%emt 00:00:01]} 6. d4 {[%clk 00:04:04]} Be7 {[%clk
00:04:05]} {[%emt 00:00:02]} 7. Bd3 {[%clk 00:04:05]} {[%emt 00:00:01]} O-O
{[%clk 00:04:05]} {[%emt 00:00:02]} 8. O-O {[%clk 00:04:05]} {[%emt 00:00:02]}
b6 {[%clk 00:04:06]} {[%emt 00:00:01]} 9. c4 {[%clk 00:04:05]} {[%emt
00:00:02]} Bb7 {[%clk 00:04:07]} {[%emt 00:00:01]} 10. Nc3 {[%clk 00:04:06]}
Nbd7 {[%clk 00:04:08]} {[%emt 00:00:01]} 11. Re1 {[%clk 00:03:56]} {[%emt
00:00:12]} Re8 {[%clk 00:04:09]} {[%emt 00:00:01]} 12. h3 {[%clk 00:03:51]}
{[%emt 00:00:06]} Bf8 {[%clk 00:04:09]} {[%emt 00:00:02]} 13. Rxe8 {[%clk
00:03:48]} {[%emt 00:00:06]} Qxe8 {[%clk 00:04:09]} {[%emt 00:00:01]} 14. Bf4
{[%clk 00:03:45]} {[%emt 00:00:04]} a6 {[%clk 00:04:07]} {[%emt 00:00:05]} 15.
a4 {[%clk 00:03:38]} {[%emt 00:00:10]} g6 {[%clk 00:04:05]} {[%emt 00:00:04]}
16. a5 {[%clk 00:03:33]} {[%emt 00:00:08]} Bg7 {[%clk 00:04:03]} {[%emt
00:00:03]} 17. Bh2 {[%clk 00:02:47]} {[%emt 00:00:47]} Qd8 {[%clk 00:03:56]}
{[%emt 00:00:09]} 18. d5 {[%clk 00:02:25]} {[%emt 00:00:24]} bxa5 {[%clk
00:03:40]} {[%emt 00:00:17]} 19. Rxa5 {[%clk 00:02:27]} Rb8 {[%clk 00:03:41]}
{[%emt 00:00:02]} 20. Ra2 {[%clk 00:02:17]} {[%emt 00:00:12]} Nc5 {[%clk
00:03:38]} {[%emt 00:00:05]} 21. Bc2 {[%clk 00:02:08]} {[%emt 00:00:11]} Nfd7
{[%clk 00:03:31]} {[%emt 00:00:09]} 22. Bf4 {[%clk 00:02:03]} {[%emt 00:00:07]}
Bc8 {[%clk 00:03:20]} {[%emt 00:00:12]} 23. Bg5 {[%clk 00:01:42]} {[%emt
00:00:23]} Bf6 {[%clk 00:03:13]} {[%emt 00:00:09]} 24. Be3 {[%clk 00:01:42]}
{[%emt 00:00:02]} Ne5 {[%clk 00:03:08]} {[%emt 00:00:07]} 25. Qe2 {[%clk
00:01:09]} {[%emt 00:00:34]} Nxf3+ {[%clk 00:03:00]} {[%emt 00:00:10]} 26. Qxf3
{[%clk 00:01:10]} {[%emt 00:00:01]} Rb4 {[%clk 00:02:52]} {[%emt 00:00:10]} 27.
Bxc5 {[%clk 00:01:04]} {[%emt 00:00:08]} dxc5 {[%clk 00:02:51]} {[%emt
00:00:03]} 28. b3 {[%clk 00:01:04]} {[%emt 00:00:02]} Bd4 {[%clk 00:02:44]}
{[%emt 00:00:09]} 29. Ne2 {[%clk 00:01:05]} {[%emt 00:00:01]} Bg7 {[%clk
00:02:42]} {[%emt 00:00:04]} 30. Qe3 {[%clk 00:01:04]} {[%emt 00:00:03]} Bf8
{[%clk 00:02:39]} {[%emt 00:00:05]} 31. Nf4 {[%clk 00:01:04]} {[%emt 00:00:02]}
Rb8 {[%emt 00:00:11]} 32. Nd3 Qd6 {[%clk 00:02:29]} {[%emt 00:00:03]} 33. Ne5
{[%clk 00:00:59]} {[%emt 00:00:09]} Bb7 {[%clk 00:02:25]} {[%emt 00:00:07]} 34.
Qf4 {[%clk 00:00:38]} {[%emt 00:00:23]} f6 {[%clk 00:02:14]} {[%emt 00:00:12]}
35. Nd3 {[%clk 00:00:40]} Re8 {[%clk 00:02:14]} {[%emt 00:00:02]} 36. Qxd6
{[%clk 00:00:38]} {[%emt 00:00:04]} Bxd6 {[%clk 00:02:09]} {[%emt 00:00:07]} 37.
Bd1 {[%clk 00:00:39]} {[%emt 00:00:01]} Bc8 {[%clk 00:02:09]} {[%emt 00:00:02]}
38. g4 {[%clk 00:00:39]} {[%emt 00:00:02]} f5 {[%clk 00:02:08]} {[%emt
00:00:03]} 39. Kg2 {[%clk 00:00:39]} {[%emt 00:00:02]} Kg7 {[%clk 00:02:06]}
{[%emt 00:00:04]} 40. Ra5 {[%clk 00:00:39]} {[%emt 00:00:02]} Kf6 {[%clk
00:01:53]} {[%emt 00:00:15]} 41. Nxc5 {[%clk 00:00:39]} {[%emt 00:00:02]} Re1
{[%emt 00:00:01]} 42. Bf3 Rb1 {[%clk 00:01:51]} {[%emt 00:00:04]} 43. Nxa6
{[%clk 00:00:42]} {[%emt 00:00:01]} Rxb3 {[%clk 00:01:44]} {[%emt 00:00:08]} 44.
c5 {[%clk 00:00:43]} {[%emt 00:00:01]} Be5 {[%clk 00:01:43]} {[%emt 00:00:03]}
45. Ra4 {[%clk 00:00:37]} {[%emt 00:00:09]} Rc3 {[%clk 00:01:38]} {[%emt
00:00:06]} 46. Ra5 {[%clk 00:00:28]} {[%emt 00:00:12]} Ke7 {[%clk 00:01:32]}
{[%emt 00:00:08]} 47. Nb4 {[%clk 00:00:28]} {[%emt 00:00:03]} 1-0

[ePGN "0.1;DGT LiveChess/2.2.3"]

[Event "new tournament description"]
[Site ""]
[Date "2018.12.27"]
[Round "9.1"]
[White "GOZZOLI"]
[Black "BRAEUNING"]
[Result "1-0"]
[TimeControl "4min+2sec"]
[WhiteElo "2565"]
[BlackElo "2324"]

1. d4 {[%clk 00:04:03]} Nf6 {[%clk 00:04:03]} {[%emt 00:00:02]} 2. Nf3 {[%clk
00:04:03]} {[%emt 00:00:02]} e6 {[%clk 00:04:04]} 3. c4 {[%clk 00:04:00]}
{[%emt 00:00:06]} Bb4+ {[%clk 00:04:05]} {[%emt 00:00:01]} 4. Bd2 {[%clk
00:04:00]} {[%emt 00:00:02]} Qe7 {[%clk 00:04:06]} {[%emt 00:00:01]} 5. g3
{[%clk 00:04:01]} {[%emt 00:00:01]} Nc6 {[%clk 00:04:06]} {[%emt 00:00:02]} 6.
Nc3 {[%clk 00:04:02]} d6 {[%clk 00:03:56]} {[%emt 00:00:12]} 7. Bg2 {[%clk
00:04:02]} {[%emt 00:00:02]} O-O {[%clk 00:03:47]} {[%emt 00:00:11]} 8. O-O
{[%clk 00:04:02]} {[%emt 00:00:01]} a5 {[%clk 00:03:42]} {[%emt 00:00:08]} 9.
Rc1 {[%clk 00:03:48]} {[%emt 00:00:16]} Bxc3 {[%clk 00:03:19]} {[%emt
00:00:24]} 10. Bxc3 {[%clk 00:03:49]} {[%emt 00:00:02]} e5 {[%clk 00:03:21]} 11.
d5 {[%clk 00:03:39]} {[%emt 00:00:11]} Nb8 {[%clk 00:03:20]} {[%emt 00:00:03]}
12. c5 {[%clk 00:03:40]} {[%emt 00:00:01]} Nbd7 {[%clk 00:03:12]} {[%emt
00:00:10]} 13. cxd6 {[%clk 00:03:41]} {[%emt 00:00:01]} cxd6 {[%clk 00:03:09]}
{[%emt 00:00:05]} 14. Nd2 {[%clk 00:03:13]} {[%emt 00:00:29]} Nc5 {[%clk
00:02:56]} {[%emt 00:00:15]} 15. Nc4 {[%clk 00:03:08]} {[%emt 00:00:07]} Qd8
{[%clk 00:02:12]} {[%emt 00:00:47]} 16. Nxa5 {[%clk 00:02:58]} {[%emt
00:00:13]} Rxa5 {[%emt 00:00:08]} 17. b4 {[%clk 00:02:59]} Rb5 {[%clk
00:01:35]} {[%emt 00:00:34]} 18. bxc5 {[%clk 00:02:31]} {[%emt 00:00:30]} Rxc5
{[%clk 00:01:36]} {[%emt 00:00:01]} 19. Bb4 {[%clk 00:02:32]} {[%emt 00:00:01]}
Rxc1 {[%clk 00:01:32]} {[%emt 00:00:06]} 20. Qxc1 {[%clk 00:02:33]} Bg4 {[%clk
00:01:27]} {[%emt 00:00:07]} 21. Qa3 {[%clk 00:01:22]} {[%emt 00:01:12]} Bxe2
{[%clk 00:01:06]} {[%emt 00:00:24]} 22. Re1 {[%clk 00:01:23]} Bc4 {[%clk
00:01:07]} {[%emt 00:00:01]} 23. Bxd6 {[%clk 00:01:24]} Re8 {[%clk 00:01:08]}
24. Rxe5 {[%clk 00:01:26]} Rxe5 {[%clk 00:00:59]} {[%emt 00:00:13]} 25. Bxe5
{[%clk 00:01:27]} Nxd5 {[%clk 00:00:38]} {[%emt 00:00:23]} 26. Qb2 {[%clk
00:01:23]} {[%emt 00:00:05]} f6 {[%clk 00:00:34]} {[%emt 00:00:07]} 27. Bd4
{[%clk 00:01:23]} {[%emt 00:00:01]} b5 {[%clk 00:00:33]} {[%emt 00:00:03]} 28.
h4 {[%clk 00:01:19]} {[%emt 00:00:06]} Qd7 {[%clk 00:00:31]} {[%emt 00:00:04]}
29. a3 {[%clk 00:01:10]} {[%emt 00:00:11]} Kf7 {[%clk 00:00:25]} {[%emt
00:00:09]} 30. Qc2 {[%clk 00:01:09]} {[%emt 00:00:03]} g6 {[%clk 00:00:22]}
{[%emt 00:00:05]} 31. Bb2 {[%clk 00:01:04]} {[%emt 00:00:06]} Qf5 {[%clk
00:00:19]} {[%emt 00:00:06]} 32. Qd2 {[%clk 00:01:00]} {[%emt 00:00:06]} Qb1+
{[%clk 00:00:10]} {[%emt 00:00:12]} 33. Kh2 {[%clk 00:01:00]} {[%emt 00:00:01]}
Qf5 {[%clk 00:00:11]} {[%emt 00:00:01]} 34. Qd4 {[%clk 00:00:57]} {[%emt
00:00:05]} Qe6 {[%clk 00:00:06]} {[%emt 00:00:07]} 35. a4 {[%clk 00:00:55]}
{[%emt 00:00:04]} Qc6 {[%clk 00:00:07]} {[%emt 00:00:01]} 36. a5 {[%clk
00:00:52]} {[%emt 00:00:05]} Qe6 {[%clk 00:00:06]} {[%emt 00:00:02]} 37. Qa7+
{[%clk 00:00:51]} {[%emt 00:00:02]} Kg8 {[%clk 00:00:07]} {[%emt 00:00:02]} 38.
a6 {[%clk 00:00:49]} {[%emt 00:00:04]} Nb4 {[%clk 00:00:07]} {[%emt 00:00:02]}
39. Qb8+ {[%clk 00:00:49]} {[%emt 00:00:02]} Kf7 {[%clk 00:00:08]} {[%emt
00:00:01]} 40. a7 {[%clk 00:00:50]} {[%emt 00:00:01]} Bd5 {[%clk 00:00:09]} 41.
Bxd5 {[%clk 00:00:49]} {[%emt 00:00:02]} Nxd5 {[%clk 00:00:09]} {[%emt
00:00:02]} 42. a8=Q {[%clk 00:00:47]} {[%emt 00:00:04]} 1-0

[Event "new tournament description"]
[Site ""]
[Date "2018.12.27"]
[Round "9.2"]
[White "VATTER"]
[Black "BELLAHCENE"]
[Result "0-1"]
[TimeControl "4min+2sec"]
[WhiteElo "2265"]
[BlackElo "2448"]

1. e4 {[%clk 00:04:03]} {[%emt 00:09:59]} c5 {[%clk 00:04:03]} {[%emt
00:00:02]} 2. Nf3 {[%clk 00:04:04]} {[%emt 00:00:02]} d6 {[%clk 00:04:04]} 3.
d4 {[%clk 00:04:04]} {[%emt 00:00:02]} cxd4 {[%clk 00:04:06]} 4. Qxd4 {[%clk
00:04:04]} {[%emt 00:00:02]} Nf6 {[%clk 00:04:06]} {[%emt 00:00:02]} 5. Bg5
{[%clk 00:04:05]} {[%emt 00:00:01]} h6 {[%clk 00:04:03]} {[%emt 00:00:06]} 6.
Bxf6 gxf6 {[%clk 00:04:04]} 7. Bc4 {[%clk 00:03:57]} {[%emt 00:00:09]} h5
{[%clk 00:03:58]} {[%emt 00:00:09]} 8. Nc3 {[%clk 00:03:51]} {[%emt 00:00:08]}
Nc6 {[%clk 00:03:59]} {[%emt 00:00:01]} 9. Qd3 {[%clk 00:03:44]} {[%emt
00:00:08]} a6 {[%clk 00:03:54]} {[%emt 00:00:08]} 10. O-O {[%clk 00:03:32]}
{[%emt 00:00:13]} e6 {[%clk 00:03:36]} {[%emt 00:00:20]} 11. Bb3 {[%clk
00:03:27]} {[%emt 00:00:07]} Qb6 {[%clk 00:03:30]} {[%emt 00:00:09]} 12. Rad1
{[%clk 00:03:18]} {[%emt 00:00:10]} Bd7 {[%clk 00:03:26]} {[%emt 00:00:07]} 13.
Nd4 {[%clk 00:03:10]} {[%emt 00:00:09]} Ne5 {[%clk 00:03:11]} {[%emt 00:00:18]}
14. Qe2 {[%clk 00:03:10]} {[%emt 00:00:02]} h4 {[%clk 00:03:11]} {[%emt
00:00:02]} 15. h3 {[%clk 00:03:01]} {[%emt 00:00:10]} Bh6 {[%clk 00:03:06]}
{[%emt 00:00:08]} 16. Kh1 {[%clk 00:02:40]} {[%emt 00:00:23]} Ng6 {[%clk
00:02:51]} {[%emt 00:00:18]} 17. Qe1 {[%clk 00:02:17]} {[%emt 00:00:24]} Kf8
{[%clk 00:02:44]} {[%emt 00:00:09]} 18. Nde2 {[%clk 00:02:14]} {[%emt
00:00:04]} Qc5 {[%clk 00:02:01]} {[%emt 00:00:45]} 19. f4 {[%clk 00:02:11]}
{[%emt 00:00:05]} Kg7 {[%clk 00:01:54]} {[%emt 00:00:10]} 20. Qd2 {[%clk
00:02:00]} {[%emt 00:00:12]} Bc6 {[%clk 00:01:47]} {[%emt 00:00:10]} 21. Qxd6
Qxd6 {[%clk 00:01:48]} 22. Rxd6 {[%clk 00:01:59]} {[%emt 00:00:01]} Rhd8 {[%clk
00:01:49]} 23. Rd3 {[%clk 00:01:26]} {[%emt 00:00:35]} b5 {[%clk 00:01:40]}
{[%emt 00:00:12]} 24. f5 {[%clk 00:01:26]} {[%emt 00:00:02]} exf5 {[%clk
00:01:34]} {[%emt 00:00:08]} 25. Rxf5 {[%clk 00:01:18]} {[%emt 00:00:09]} Ne5
{[%clk 00:00:59]} {[%emt 00:00:37]} 26. Rxd8 {[%emt 00:00:05]} Rxd8 27. Nd5
{[%clk 00:01:13]} {[%emt 00:00:04]} Bg5 {[%clk 00:01:03]} 28. Nd4 {[%clk
00:01:08]} {[%emt 00:00:08]} Bd7 {[%clk 00:01:02]} {[%emt 00:00:03]} 29. Rf1
{[%clk 00:01:03]} {[%emt 00:00:07]} a5 {[%clk 00:00:55]} {[%emt 00:00:09]} 30.
a3 {[%clk 00:00:59]} {[%emt 00:00:05]} a4 {[%clk 00:00:53]} {[%emt 00:00:05]}
31. Ba2 {[%clk 00:01:00]} Rb8 {[%clk 00:00:43]} {[%emt 00:00:12]} 32. c3 {[%clk
00:00:54]} {[%emt 00:00:08]} Nc4 {[%clk 00:00:44]} 33. Bxc4 {[%clk 00:00:50]}
{[%emt 00:00:06]} bxc4 {[%clk 00:00:45]} {[%emt 00:00:01]} 34. Nb4 {[%clk
00:00:51]} Re8 {[%clk 00:00:41]} {[%emt 00:00:07]} 35. Nf5+ {[%clk 00:00:49]}
{[%emt 00:00:04]} Kf8 {[%clk 00:00:40]} {[%emt 00:00:03]} 36. Nd6 {[%clk
00:00:48]} {[%emt 00:00:03]} Re6 {[%clk 00:00:39]} {[%emt 00:00:03]} 37. Nxc4
{[%clk 00:00:46]} {[%emt 00:00:04]} Rxe4 {[%clk 00:00:39]} {[%emt 00:00:02]} 38.
Nb6 {[%clk 00:00:42]} {[%emt 00:00:06]} Bb5 {[%clk 00:00:38]} {[%emt 00:00:02]}
39. c4 {[%clk 00:00:38]} {[%emt 00:00:06]} Bxc4 {[%clk 00:00:37]} {[%emt
00:00:04]} 40. Nxc4 {[%clk 00:00:39]} {[%emt 00:00:02]} Rxc4 {[%clk 00:00:38]}
41. Rd1 {[%clk 00:00:35]} {[%emt 00:00:05]} Bf4 {[%clk 00:00:38]} {[%emt
00:00:03]} 42. Kg1 {[%clk 00:00:31]} {[%emt 00:00:06]} Be5 {[%clk 00:00:39]}
{[%emt 00:00:01]} 43. Rd2 {[%clk 00:00:29]} {[%emt 00:00:04]} Bg3 {[%clk
00:00:36]} {[%emt 00:00:05]} 44. Kf1 {[%clk 00:00:28]} {[%emt 00:00:02]} f5
{[%clk 00:00:36]} {[%emt 00:00:03]} 45. Ke2 {[%clk 00:00:29]} {[%emt 00:00:01]}
Bf4 {[%clk 00:00:32]} {[%emt 00:00:06]} 46. Rd8+ {[%clk 00:00:24]} {[%emt
00:00:06]} Kg7 {[%clk 00:00:34]} 47. Kd3 {[%clk 00:00:25]} {[%emt 00:00:02]}
Rc1 {[%clk 00:00:34]} {[%emt 00:00:01]} 48. Ra8 {[%clk 00:00:26]} Rg1 {[%clk
00:00:29]} {[%emt 00:00:07]} 49. Rxa4 {[%clk 00:00:26]} {[%emt 00:00:03]} Rxg2
50. Ra5 {[%clk 00:00:26]} {[%emt 00:00:02]} Kg6 {[%clk 00:00:31]} {[%emt
00:00:02]} 51. Nd5 {[%clk 00:00:25]} {[%emt 00:00:03]} Bg5 {[%clk 00:00:30]}
{[%emt 00:00:03]} 52. b4 {[%clk 00:00:25]} {[%emt 00:00:02]} Rg3+ {[%clk
00:00:30]} {[%emt 00:00:02]} 53. Ke2 {[%emt 00:00:04]} Rxh3 54. b5 {[%clk
00:00:24]} Rb3 {[%clk 00:00:33]} 55. b6 {[%clk 00:00:25]} {[%emt 00:00:01]} h3
{[%clk 00:00:33]} {[%emt 00:00:02]} 56. Kf2 {[%clk 00:00:18]} {[%emt 00:00:08]}
Bh4+ {[%clk 00:00:34]} {[%emt 00:00:01]} 57. Kg1 {[%clk 00:00:18]} {[%emt
00:00:02]} Bg3 {[%clk 00:00:33]} {[%emt 00:00:03]} 58. Kf1 {[%clk 00:00:13]}
{[%emt 00:00:08]} Rb1+ {[%clk 00:00:32]} {[%emt 00:00:03]} 59. Ke2 {[%clk
00:00:14]} h2 {[%clk 00:00:33]} 60. Ne7+ {[%clk 00:00:15]} {[%emt 00:00:02]}
Kf6 {[%clk 00:00:31]} {[%emt 00:00:05]} 0-1

[ePGN "0.1;DGT LiveChess/2.2.3"]

[Event "new tournament description"]
[Site ""]
[Date "2018.12.27"]
[Round "10.1"]
[White "POUCHON"]
[Black "GOZZOLI"]
[Result "0-1"]
[TimeControl "4min+2sec"]
[WhiteElo "2047"]
[BlackElo "2565"]

1. d4 {[%clk 00:04:04]} {[%emt 00:09:33]} d5 {[%clk 00:03:59]} {[%emt
00:00:05]} 2. Nf3 {[%clk 00:04:05]} {[%emt 00:00:01]} Bf5 {[%clk 00:04:00]}
{[%emt 00:00:02]} 3. Bf4 {[%clk 00:04:05]} {[%emt 00:00:02]} e6 {[%clk
00:04:00]} {[%emt 00:00:01]} 4. e3 {[%clk 00:04:05]} {[%emt 00:00:02]} Nf6
{[%clk 00:04:00]} {[%emt 00:00:01]} 5. c4 {[%clk 00:04:05]} {[%emt 00:00:02]}
Bb4+ {[%clk 00:03:58]} {[%emt 00:00:05]} 6. Nbd2 {[%clk 00:04:05]} {[%emt
00:00:03]} O-O {[%clk 00:03:51]} {[%emt 00:00:08]} 7. a3 {[%clk 00:04:04]}
{[%emt 00:00:03]} Bd6 {[%clk 00:03:46]} {[%emt 00:00:06]} 8. Bg3 {[%clk
00:04:05]} {[%emt 00:00:01]} a5 {[%clk 00:03:44]} {[%emt 00:00:04]} 9. Be2
{[%clk 00:04:05]} {[%emt 00:00:03]} a4 {[%clk 00:03:43]} {[%emt 00:00:02]} 10.
O-O {[%clk 00:04:05]} {[%emt 00:00:02]} Bxg3 {[%clk 00:03:42]} {[%emt
00:00:03]} 11. hxg3 {[%clk 00:04:06]} {[%emt 00:00:01]} c6 {[%clk 00:03:42]}
{[%emt 00:00:02]} 12. c5 {[%clk 00:04:03]} {[%emt 00:00:06]} Nbd7 {[%clk
00:03:40]} {[%emt 00:00:04]} 13. b3 {[%clk 00:03:59]} {[%emt 00:00:06]} h6
{[%clk 00:03:21]} {[%emt 00:00:21]} 14. b4 {[%clk 00:03:53]} {[%emt 00:00:09]}
Qc7 {[%clk 00:03:03]} {[%emt 00:00:19]} 15. Re1 {[%clk 00:03:47]} {[%emt
00:00:09]} Rfe8 {[%clk 00:03:00]} {[%emt 00:00:05]} 16. Nh4 {[%clk 00:03:36]}
{[%emt 00:00:13]} Be4 {[%clk 00:02:55]} {[%emt 00:00:06]} 17. Nhf3 {[%clk
00:03:07]} {[%emt 00:00:31]} Bh7 {[%clk 00:02:53]} {[%emt 00:00:03]} 18. Rc1
{[%clk 00:03:02]} {[%emt 00:00:08]} e5 {[%clk 00:02:35]} {[%emt 00:00:19]} 19.
dxe5 {[%clk 00:02:57]} {[%emt 00:00:08]} Nxe5 {[%clk 00:02:35]} {[%emt
00:00:01]} 20. Nxe5 {[%clk 00:02:58]} {[%emt 00:00:01]} Qxe5 {[%clk 00:02:35]}
{[%emt 00:00:02]} 21. Nf3 {[%clk 00:02:46]} {[%emt 00:00:14]} Qb2 {[%clk
00:02:28]} {[%emt 00:00:09]} 22. Ra1 {[%clk 00:02:45]} {[%emt 00:00:04]} Ne4
{[%clk 00:02:23]} {[%emt 00:00:06]} 23. Qc1 {[%clk 00:02:26]} {[%emt 00:00:21]}
Qf6 {[%clk 00:02:21]} {[%emt 00:00:04]} 24. Bd3 {[%clk 00:02:18]} {[%emt
00:00:11]} h5 {[%clk 00:02:10]} {[%emt 00:00:13]} 25. Qc2 {[%clk 00:01:55]}
{[%emt 00:00:25]} Re7 {[%clk 00:01:57]} {[%emt 00:00:14]} 26. Rad1 {[%clk
00:01:33]} {[%emt 00:00:24]} g5 {[%clk 00:01:48]} {[%emt 00:00:11]} 27. Nd4
{[%clk 00:01:19]} {[%emt 00:00:16]} Bg6 {[%clk 00:01:48]} {[%emt 00:00:01]} 28.
Bxe4 {[%clk 00:00:57]} {[%emt 00:00:25]} Rxe4 {[%clk 00:01:49]} {[%emt
00:00:01]} 29. Qd2 {[%clk 00:00:56]} {[%emt 00:00:03]} h4 {[%clk 00:01:41]}
{[%emt 00:00:10]} 30. f3 {[%clk 00:00:57]} {[%emt 00:00:02]} Re7 {[%clk
00:01:36]} {[%emt 00:00:06]} 31. g4 {[%clk 00:00:58]} {[%emt 00:00:01]} Rae8
{[%clk 00:01:35]} {[%emt 00:00:02]} 32. Qf2 {[%clk 00:00:53]} {[%emt 00:00:07]}
Kg7 {[%clk 00:01:33]} {[%emt 00:00:04]} 33. Qd2 {[%clk 00:00:44]} {[%emt
00:00:12]} Bh7 {[%clk 00:01:09]} {[%emt 00:00:26]} 34. Qf2 {[%clk 00:00:45]}
{[%emt 00:00:01]} Qe5 {[%clk 00:01:00]} {[%emt 00:00:10]} 35. Rd2 {[%clk
00:00:41]} {[%emt 00:00:07]} Kg8 {[%clk 00:00:52]} {[%emt 00:00:09]} 36. Rdd1
{[%clk 00:00:42]} {[%emt 00:00:02]} f6 {[%clk 00:00:50]} {[%emt 00:00:04]} 37.
Rd2 {[%clk 00:00:43]} f5 {[%clk 00:00:46]} {[%emt 00:00:05]} 38. gxf5 {[%clk
00:00:44]} {[%emt 00:00:01]} Bxf5 {[%clk 00:00:47]} 39. Rde2 {[%clk 00:00:38]}
{[%emt 00:00:08]} Bd3 {[%clk 00:00:45]} {[%emt 00:00:03]} 40. f4 {[%clk
00:00:25]} {[%emt 00:00:16]} Qf6 {[%clk 00:00:29]} {[%emt 00:00:18]} 41. Rd2
{[%clk 00:00:24]} {[%emt 00:00:04]} Be4 {[%clk 00:00:28]} {[%emt 00:00:02]} 42.
fxg5 {[%clk 00:00:22]} {[%emt 00:00:04]} Qxg5 {[%clk 00:00:29]} 43. Qf4 {[%clk
00:00:23]} {[%emt 00:00:01]} Rg7 {[%clk 00:00:29]} {[%emt 00:00:02]} 44. Qxg5
{[%clk 00:00:24]} {[%emt 00:00:01]} Rxg5 {[%clk 00:00:30]} 45. Rf2 {[%clk
00:00:24]} Re7 {[%clk 00:00:29]} {[%emt 00:00:03]} 46. Kh2 {[%clk 00:00:26]}
Reg7 {[%clk 00:00:30]} {[%emt 00:00:02]} 47. Rg1 {[%clk 00:00:27]} Rg3 {[%clk
00:00:31]} 48. Nf5 {[%clk 00:00:24]} {[%emt 00:00:06]} Bxf5 {[%clk 00:00:32]}
49. Rxf5 {[%clk 00:00:26]} h3 {[%clk 00:00:31]} {[%emt 00:00:03]} 50. Rf2
{[%clk 00:00:25]} {[%emt 00:00:03]} Rxe3 {[%clk 00:00:31]} {[%emt 00:00:02]} 51.
gxh3 {[%clk 00:00:25]} {[%emt 00:00:02]} Rxg1 {[%clk 00:00:32]} 52. Kxg1 {[%clk
00:00:25]} {[%emt 00:00:01]} Rxa3 {[%clk 00:00:32]} {[%emt 00:00:01]} 53. Kg2
{[%clk 00:00:27]} Rb3 {[%clk 00:00:34]} {[%emt 00:00:01]} 54. Rf4 {[%clk
00:00:28]} a3 {[%clk 00:00:35]} 0-1

[Event "new tournament description"]
[Site ""]
[Date "2018.12.27"]
[Round "11.1"]
[White "GOZZOLI"]
[Black "DAESCHLER"]
[Result "1-0"]
[TimeControl "4min+2sec"]
[WhiteElo "2565"]
[BlackElo "2122"]

1. d4 {[%clk 00:04:03]} {[%emt 00:11:23]} d5 {[%clk 00:04:03]} {[%emt
00:00:01]} 2. Nf3 {[%clk 00:04:03]} {[%emt 00:00:02]} Nf6 {[%clk 00:04:04]} 3.
Bg5 {[%clk 00:04:03]} {[%emt 00:00:03]} Nbd7 {[%clk 00:04:00]} {[%emt
00:00:07]} 4. e3 {[%clk 00:04:03]} {[%emt 00:00:02]} e6 {[%clk 00:03:58]}
{[%emt 00:00:04]} 5. Bd3 {[%clk 00:04:02]} {[%emt 00:00:03]} Be7 {[%clk
00:03:56]} {[%emt 00:00:04]} 6. Nbd2 {[%clk 00:04:00]} {[%emt 00:00:03]} c5
{[%clk 00:03:44]} {[%emt 00:00:15]} 7. c3 {[%clk 00:04:01]} O-O {[%clk
00:03:00]} {[%emt 00:00:46]} 8. O-O {[%clk 00:04:02]} b6 {[%clk 00:02:53]}
{[%emt 00:00:09]} 9. Qa4 {[%clk 00:04:01]} {[%emt 00:00:02]} Bb7 {[%clk
00:02:47]} {[%emt 00:00:09]} 10. Ne5 {[%clk 00:04:02]} h6 {[%clk 00:02:10]}
{[%emt 00:00:39]} 11. Bxf6 {[%clk 00:03:28]} {[%emt 00:00:36]} Bxf6 {[%clk
00:01:45]} {[%emt 00:00:25]} 12. Nxd7 {[%emt 00:00:15]} 1-0